fUSD/lending_fUSD_20250110
["ID","MTS","AMOUNT","RATE_DAILY","PERIOD"]
[348403071,1736513445276,-273.77252007,9.999e-05,2]
[348403072,1736513445286,-500.0,9.999e-05,2]
[348403073,1736513445295,-500.0,9.999e-05,2]
[348403074,1736513445305,-500.0,9.999e-05,2]
[348403075,1736513445314,-500.0,9.999e-05,2]
[348403076,1736513445323,-500.0,9.999e-05,2]
[348403077,1736513445332,-500.0,9.999e-05,2]
[348403078,1736513445341,-500.0,9.999e-05,2]
[348403079,1736513445351,-576.06,9.999e-05,2]
[348403080,1736513445360,-500.0,9.999e-05,2]
[348403081,1736513445370,-500.0,9.999e-05,2]
[348403082,1736513445379,-981.9,9.999e-05,2]
[348403083,1736513445388,-600.06,9.999e-05,2]
[348403084,1736513445398,-500.0,9.999e-05,2]
[348403085,1736513445408,-632.42,9.999e-05,2]
[348403086,1736513445417,-500.0,9.999e-05,2]
[348403087,1736513445428,-500.0,9.999e-05,2]
[348403088,1736513445437,-519.92,9.999e-05,2]
[348403089,1736513445447,-500.0,9.999e-05,2]
[348403090,1736513445456,-500.0,9.999e-05,2]
[348403091,1736513445467,-635.35,9.999e-05,2]
[348403092,1736513445481,-1000.0,9.999e-05,2]
[348403093,1736513445491,-500.0,9.999e-05,2]
[348403094,1736513445502,-500.0,9.999e-05,2]
[348403095,1736513445513,-651.75,9.999e-05,2]
[348403096,1736513445523,-744.18,9.999e-05,2]
[348403097,1736513445532,-2491.75,9.999e-05,2]
[348403098,1736513445542,-500.0,9.999e-05,2]
[348403099,1736513445552,-693.57,9.999e-05,2]
[348403100,1736513445561,-500.0,9.999e-05,2]
[348403101,1736513445571,-602.91,9.999e-05,2]
[348403102,1736513445580,-500.0,9.999e-05,2]
[348403103,1736513445590,-559.95,9.999e-05,2]
[348403104,1736513445600,-569.59,9.999e-05,2]
[348403105,1736513445608,-625.86,9.999e-05,2]
[348403106,1736513445618,-500.0,9.999e-05,2]
[348403107,1736513445627,-1839.59,9.999e-05,2]
[348403108,1736513445636,-500.0,9.999e-05,2]
[348403109,1736513445645,-545.59,9.999e-05,2]
[348403110,1736513445654,-628.24,9.999e-05,2]
[348403111,1736513445664,-745.61,9.999e-05,2]
[348403112,1736513445674,-614.77,9.999e-05,2]
[348403113,1736513445683,-531.84,9.999e-05,2]
[348403114,1736513445692,-746.88,9.999e-05,2]
[348403115,1736513445702,-745.34,9.999e-05,2]
[348403116,1736513445711,-715.04,9.999e-05,2]
[348403117,1736513445721,-500.0,9.999e-05,2]
[348403118,1736513445730,-722.8,9.999e-05,2]
[348403119,1736513445740,-572.66,9.999e-05,2]
[348403120,1736513445750,-524.17,9.999e-05,2]
[348403121,1736513445759,-558.17,9.999e-05,2]
[348403122,1736513445769,-500.0,9.999e-05,2]
[348403123,1736513445779,-500.0,9.999e-05,2]
[348403124,1736513445790,-601.76,9.999e-05,2]
[348403125,1736513445799,-500.0,9.999e-05,2]
[348403126,1736513445808,-2853.83,9.999e-05,2]
[348403127,1736513445818,-500.0,9.999e-05,2]
[348403128,1736513445827,-500.0,9.999e-05,2]
[348403129,1736513445836,-715.11,9.999e-05,2]
[348403130,1736513445846,-811.95,9.999e-05,2]
[348403131,1736513445855,-500.0,9.999e-05,2]
[348403132,1736513445867,-2379.23,9.999e-05,2]
[348403133,1736513445878,-533.82,9.999e-05,2]
[348403134,1736513445888,-571.44,9.999e-05,2]
[348403135,1736513445897,-682.32,9.999e-05,2]
[348403136,1736513445907,-645.35,9.999e-05,2]
[348403137,1736513445919,-555.45,9.999e-05,2]
[348403138,1736513445929,-2323.18,9.999e-05,2]
[348403139,1736513445939,-500.0,9.999e-05,2]
[348403140,1736513445948,-500.0,9.999e-05,2]
[348403141,1736513445958,-889.48,9.999e-05,2]
[348403142,1736513445967,-532.4,9.999e-05,2]
[348403143,1736513445976,-500.0,9.999e-05,2]
[348403144,1736513445985,-500.0,9.999e-05,2]
[348403145,1736513445995,-608.55,9.999e-05,2]
[348403146,1736513446004,-500.0,9.999e-05,2]
[348403147,1736513446013,-956.0,9.999e-05,2]
[348403148,1736513446023,-500.0,9.999e-05,2]
[348403149,1736513446032,-500.0,9.999e-05,2]
[348403150,1736513446041,-501.55,9.999e-05,2]
[348403151,1736513446051,-500.0,9.999e-05,2]
[348403152,1736513446060,-770.48,9.999e-05,2]
[348403153,1736513446069,-522.55,9.999e-05,2]
[348403154,1736513446079,-781.45,9.999e-05,2]
[348403155,1736513446088,-500.0,9.999e-05,2]
[348403156,1736513446098,-500.0,9.999e-05,2]
[348403157,1736513446107,-500.0,9.999e-05,2]
[348403158,1736513446117,-960.0,0.0001,2]
[348403159,1736513446127,-478082.75425744,0.0001,2]
[348403183,1736513447423,-552.61,9.998e-05,2]
[348403184,1736513447435,-500.0,9.998e-05,2]
[348403185,1736513447445,-500.0,9.999e-05,2]
[348403186,1736513447454,-3211.0897597,0.0001,2]
[348403187,1736513447466,-30768.99905219,0.0001,2]
[348403188,1736513447478,-42142.84061232,0.0001,2]
[348403189,1736513473076,763.92,8.219e-05,2]
[348403190,1736513618017,700.00010446,1e-05,7]
[348403194,1736514342570,725.72,8.219e-05,2]
[348403248,1736514631955,-259.3627,8.812e-05,2]
[348403249,1736514631965,-111.9873,8.818e-05,2]
[348403250,1736514632120,-745.6524641,8.818e-05,2]
[348403251,1736514632177,-435.51999,8.818e-05,2]
[348403252,1736514632234,-706.8402459,8.818e-05,2]
[348403253,1736514632244,-250.0,8.822e-05,2]
[348403254,1736514632253,-158.74,8.827e-05,2]
[348403255,1736514632262,-681.48,8.839e-05,2]
[348403256,1736514632271,-228.97,8.842e-05,2]
[348403257,1736514632279,-1000.0,8.846e-05,2]
[348403258,1736514632289,-1686.07,8.891e-05,2]
[348403259,1736514632297,-250.0,8.912e-05,2]
[348403260,1736514632306,-150.0,9e-05,2]
[348403261,1736514632315,-150.0,9e-05,2]
[348403262,1736514632324,-150.0,9e-05,2]
[348403263,1736514632334,-167.48,9.093e-05,2]
[348403264,1736514632344,-154.862,9.5e-05,2]
[348403265,1736514632353,-4794.21687324,9.5e-05,2]
[348403266,1736514632364,-957.55557787,9.5e-05,2]
[348403267,1736514632380,-1162.29754889,9.5e-05,2]
[348403268,1736514632389,-500.0,9.507e-05,2]
[348403269,1736514632398,-500.0,9.676e-05,2]
[348403270,1736514632407,-150.0,9.725e-05,2]
[348403272,1736514632416,-150.0,9.727e-05,2]
[348403273,1736514632426,-1510.11819337,9.728e-05,2]
[348403274,1736514632435,-150.0,9.728e-05,2]
[348403275,1736514632445,-150.0,9.73e-05,2]
[348403276,1736514632454,-150.0,9.731e-05,2]
[348403277,1736514632463,-150.0,9.736e-05,2]
[348403278,1736514632472,-150.0,9.737e-05,2]
[348403279,1736514632482,-150.0,9.737e-05,2]
[348403280,1736514632491,-150.0,9.737e-05,2]
[348403281,1736514632500,-150.0,9.739e-05,2]
[348403282,1736514632510,-150.0,9.74e-05,2]
[348403283,1736514632519,-150.0,9.741e-05,2]
[348403284,1736514632529,-150.0,9.742e-05,2]
[348403285,1736514632538,-150.0,9.744e-05,2]
[348403286,1736514632547,-150.0,9.744e-05,2]
[348403287,1736514632555,-150.0,9.744e-05,2]
[348403288,1736514632564,-150.0,9.751e-05,2]
[348403289,1736514632572,-150.0,9.751e-05,2]
[348403290,1736514632581,-150.0,9.756e-05,2]
[348403291,1736514632591,-348.52095469,9.761e-05,2]
[348403292,1736514632600,-150.0,9.763e-05,2]
[348403293,1736514632609,-150.0,9.768e-05,2]
[348403294,1736514632618,-150.0,9.772e-05,2]
[348403295,1736514632627,-150.0,9.773e-05,2]
[348403296,1736514632636,-150.0,9.782e-05,2]
[348403297,1736514632646,-150.0,9.784e-05,2]
[348403298,1736514632655,-150.0,9.785e-05,2]
[348403299,1736514632665,-150.0,9.787e-05,2]
[348403300,1736514632674,-150.0,9.79e-05,2]
[348403301,1736514632683,-150.0,9.79e-05,2]
[348403302,1736514632692,-150.0,9.791e-05,2]
[348403303,1736514632701,-1500.0,9.795e-05,2]
[348403304,1736514632711,-1249.9570804,9.797e-05,2]
[348403305,1736514632721,-62.12766433,9.801e-05,2]
[348403306,1736514633039,-87.87233567,9.801e-05,2]
[348403307,1736514633049,-150.0,9.803e-05,2]
[348403308,1736514633059,-150.0,9.804e-05,2]
[348403309,1736514633067,-150.0,9.808e-05,2]
[348403310,1736514633077,-150.0,9.809e-05,2]
[348403311,1736514633086,-150.0,9.809e-05,2]
[348403312,1736514633096,-150.0,9.81e-05,2]
[348403313,1736514633106,-150.0,9.811e-05,2]
[348403314,1736514633115,-150.0,9.812e-05,2]
[348403315,1736514633124,-150.0,9.813e-05,2]
[348403316,1736514633133,-150.0,9.815e-05,2]
[348403317,1736514633143,-13.17478164,9.816e-05,2]
[348403318,1736514633154,-136.82521836,9.816e-05,2]
[348403319,1736514633163,-150.0,9.818e-05,2]
[348403320,1736514633172,-150.0,9.821e-05,2]
[348403321,1736514633181,-150.0,9.824e-05,2]
[348403322,1736514633191,-150.0,9.826e-05,2]
[348403323,1736514633200,-150.0,9.829e-05,2]
[348403324,1736514633210,-150.0,9.83e-05,2]
[348403325,1736514633219,-150.0,9.844e-05,2]
[348403326,1736514633228,-150.0,9.845e-05,2]
[348403327,1736514633237,-1500.0,9.845e-05,2]
[348403328,1736514633246,-150.0,9.846e-05,2]
[348403329,1736514633256,-150.0,9.847e-05,2]
[348403330,1736514633265,-1500.0,9.848e-05,2]
[348403331,1736514633274,-470.97352494,9.849e-05,2]
[348403334,1736514637817,-150.0,9.737e-05,2]
[348403335,1736514637827,-150.0,9.81e-05,2]
[348403336,1736514637837,-150.0,9.813e-05,2]
[348403337,1736514637846,-150.0,9.814e-05,2]
[348403338,1736514637855,-392.094,9.849e-05,2]
[348403340,1736514637867,-209.88247506,9.849e-05,2]
[348403341,1736514637876,-256.59878272,9.849e-05,2]
[348403342,1736514637887,-713.89121728,9.849e-05,2]
[348403343,1736514637896,-33.83367134,9.849e-05,2]
[348403344,1736514637919,-466.16632866,9.849e-05,2]
[348403345,1736514637930,-628.56025132,9.849e-05,2]
[348403346,1736514637941,-1196.38974868,9.849e-05,2]
[348403347,1736514637949,-2796.11025132,9.849e-05,2]
[348403348,1736514637961,-1613.54974868,9.849e-05,2]
[348403349,1736514637971,-821.39,9.849e-05,2]
[348403350,1736514637980,-500.0,9.849e-05,2]
[348403351,1736514637990,-460.67589533,9.849e-05,2]
[348403352,1736514638001,-207.32410467,9.849e-05,2]
[348403353,1736514638011,-579.32,9.849e-05,2]
[348403354,1736514638024,-573.71,9.849e-05,2]
[348403355,1736514638034,-653.07,9.849e-05,2]
[348403356,1736514638043,-513.5,9.849e-05,2]
[348403357,1736514638052,-150.0,9.86e-05,2]
[348403358,1736514638063,-150.0,9.861e-05,2]
[348403359,1736514638072,-150.0,9.862e-05,2]
[348403360,1736514638081,-150.0,9.862e-05,2]
[348403361,1736514638093,-150.0,9.866e-05,2]
[348403362,1736514638103,-150.0,9.866e-05,2]
[348403363,1736514638113,-150.0,9.868e-05,2]
[348403364,1736514638122,-150.0,9.871e-05,2]
[348403365,1736514638131,-1500.0,9.872e-05,2]
[348403366,1736514638141,-150.0,9.873e-05,2]
[348403367,1736514638151,-150.0,9.873e-05,2]
[348403368,1736514638160,-1500.0,9.874e-05,2]
[348403369,1736514638169,-150.0,9.874e-05,2]
[348403370,1736514638179,-150.0,9.875e-05,2]
[348403371,1736514638188,-150.0,9.875e-05,2]
[348403372,1736514638198,-150.0,9.876e-05,2]
[348403373,1736514638207,-150.0,9.877e-05,2]
[348403374,1736514638216,-150.0,9.877e-05,2]
[348403375,1736514638226,-150.0,9.878e-05,2]
[348403376,1736514638235,-150.0,9.879e-05,2]
[348403377,1736514638245,-150.0,9.879e-05,2]
[348403378,1736514638255,-150.0,9.88e-05,2]
[348403379,1736514638264,-1500.0,9.881e-05,2]
[348403380,1736514638274,-150.0,9.885e-05,2]
[348403381,1736514638284,-150.0,9.886e-05,2]
[348403382,1736514638293,-150.0,9.886e-05,2]
[348403383,1736514638303,-150.0,9.887e-05,2]
[348403384,1736514638313,-150.0,9.887e-05,2]
[348403385,1736514638322,-150.0,9.889e-05,2]
[348403386,1736514638332,-150.0,9.889e-05,2]
[348403387,1736514638342,-150.0,9.892e-05,2]
[348403388,1736514638351,-150.0,9.894e-05,2]
[348403389,1736514638360,-1500.0,9.898e-05,2]
[348403390,1736514638369,-3614.7184,9.898e-05,2]
[348403391,1736514638379,-150.0,9.905e-05,2]
[348403392,1736514638388,-150.0,9.908e-05,2]
[348403393,1736514638397,-150.0,9.909e-05,2]
[348403394,1736514638407,-150.0,9.909e-05,2]
[348403395,1736514638416,-150.0,9.911e-05,2]
[348403396,1736514638426,-150.0,9.913e-05,2]
[348403397,1736514638435,-1500.0,9.915e-05,2]
[348403398,1736514638444,-150.0,9.917e-05,2]
[348403399,1736514638454,-150.0,9.921e-05,2]
[348403400,1736514638463,-150.0,9.926e-05,2]
[348403401,1736514638474,-150.0,9.926e-05,2]
[348403402,1736514638484,-150.0,9.927e-05,2]
[348403403,1736514638494,-150.0,9.928e-05,2]
[348403404,1736514638503,-150.0,9.928e-05,2]
[348403405,1736514638512,-150.0,9.93e-05,2]
[348403406,1736514638522,-150.0,9.93e-05,2]
[348403407,1736514638531,-150.0,9.931e-05,2]
[348403408,1736514638540,-150.0,9.932e-05,2]
[348403409,1736514638549,-150.0,9.934e-05,2]
[348403410,1736514638559,-150.0,9.936e-05,2]
[348403411,1736514638568,-150.0,9.937e-05,2]
[348403412,1736514638577,-150.0,9.938e-05,2]
[348403414,1736514638587,-150.0,9.938e-05,2]
[348403416,1736514638596,-150.0,9.939e-05,2]
[348403418,1736514638606,-150.0,9.939e-05,2]
[348403419,1736514638616,-150.0,9.943e-05,2]
[348403420,1736514638626,-150.0,9.944e-05,2]
[348403421,1736514638635,-150.0,9.946e-05,2]
[348403422,1736514638645,-228.97,9.947e-05,2]
[348403423,1736514638655,-150.0,9.948e-05,2]
[348403424,1736514638664,-869.0,9.951e-05,2]
[348403425,1736514638674,-150.0,9.951e-05,2]
[348403426,1736514638683,-150.0,9.952e-05,2]
[348403427,1736514638693,-150.0,9.952e-05,2]
[348403428,1736514638703,-1000.0,9.952e-05,2]
[348403429,1736514638713,-150.0,9.953e-05,2]
[348403430,1736514638722,-150.0,9.956e-05,2]
[348403431,1736514638731,-150.0,9.957e-05,2]
[348403432,1736514638741,-150.0,9.958e-05,2]
[348403433,1736514638751,-150.0,9.96e-05,2]
[348403434,1736514638760,-150.0,9.96e-05,2]
[348403435,1736514638770,-150.0,9.962e-05,2]
[348403436,1736514638779,-168.60385471,9.964e-05,2]
[348403437,1736514638788,-831.96643773,9.965e-05,2]
[348403438,1736514638801,-668.03356227,9.965e-05,2]
[348403439,1736514638810,-150.0,9.965e-05,2]
[348403440,1736514638820,-150.0,9.966e-05,2]
[348403441,1736514638830,-150.0,9.966e-05,2]
[348403442,1736514638840,-150.0,9.968e-05,2]
[348403443,1736514638849,-150.0,9.972e-05,2]
[348403444,1736514638859,-150.0,9.972e-05,2]
[348403445,1736514638867,-150.0,9.972e-05,2]
[348403446,1736514638877,-566.37896201,9.973e-05,2]
[348403447,1736514638886,-150.0,9.974e-05,2]
[348403448,1736514638895,-566.37896201,9.975e-05,2]
[348403449,1736514638904,-150.0,9.975e-05,2]
[348403450,1736514638913,-150.0,9.975e-05,2]
[348403451,1736514638924,-150.0,9.976e-05,2]
[348403452,1736514638937,-566.37896201,9.976e-05,2]
[348403453,1736514638946,-150.0,9.978e-05,2]
[348403454,1736514638955,-1500.0,9.979e-05,2]
[348403455,1736514638964,-1500.0,9.98e-05,2]
[348403456,1736514638973,-150.0,9.984e-05,2]
[348403457,1736514638983,-150.0,9.986e-05,2]
[348403458,1736514638993,-566.37896201,9.987e-05,2]
[348403459,1736514639002,-150.0,9.989e-05,2]
[348403460,1736514639011,-150.0,9.991e-05,2]
[348403461,1736514639024,-2699.2079788,9.992e-05,2]
[348403462,1736514639033,-1346.9883232,9.992e-05,2]
[348403463,1736514639043,-566.37896201,9.995e-05,2]
[348403464,1736514639052,-500.0,9.995e-05,2]
[348403465,1736514639062,-500.0,9.995e-05,2]
[348403466,1736514639071,-533.52,9.995e-05,2]
[348403467,1736514639080,-782.3,9.995e-05,2]
[348403468,1736514639089,-612.44,9.995e-05,2]
[348403469,1736514639099,-819.01,9.995e-05,2]
[348403470,1736514639108,-981.9,9.995e-05,2]
[348403471,1736514639117,-1000.0,9.995e-05,2]
[348403472,1736514639126,-744.18,9.995e-05,2]
[348403473,1736514639135,-500.0,9.995e-05,2]
[348403474,1736514639143,-1839.59,9.995e-05,2]
[348403475,1736514639152,-500.0,9.997e-05,2]
[348403476,1736514639162,-547.45,9.997e-05,2]
[348403477,1736514639171,-612.28,9.997e-05,2]
[348403478,1736514639180,-562.66,9.997e-05,2]
[348403479,1736514639190,-643.27,9.997e-05,2]
[348403480,1736514639199,-500.0,9.997e-05,2]
[348403481,1736514639208,-582.58,9.997e-05,2]
[348403482,1736514639217,-500.0,9.997e-05,2]
[348403483,1736514639226,-500.0,9.997e-05,2]
[348403484,1736514639235,-500.0,9.997e-05,2]
[348403485,1736514639244,-500.0,9.997e-05,2]
[348403486,1736514639254,-500.0,9.997e-05,2]
[348403487,1736514639263,-583.49,9.997e-05,2]
[348403488,1736514639272,-500.0,9.997e-05,2]
[348403489,1736514639281,-610.03,9.997e-05,2]
[348403490,1736514639290,-500.0,9.997e-05,2]
[348403491,1736514639300,-500.0,9.997e-05,2]
[348403492,1736514639311,-654.59,9.997e-05,2]
[348403493,1736514639323,-500.0,9.997e-05,2]
[348403494,1736514639334,-688.29,9.997e-05,2]
[348403495,1736514639343,-500.0,9.997e-05,2]
[348403496,1736514639352,-561.58,9.997e-05,2]
[348403497,1736514639361,-500.0,9.997e-05,2]
[348403498,1736514639369,-500.0,9.997e-05,2]
[348403499,1736514639378,-500.0,9.997e-05,2]
[348403500,1736514639387,-315.89622937,9.997e-05,2]
[348403501,1736514639400,-303.2257835,9.997e-05,2]
[348403502,1736514639416,-79.44798713,9.997e-05,2]
[348403503,1736514639425,-519.71,9.997e-05,2]
[348403504,1736514639435,-500.0,9.997e-05,2]
[348403505,1736514639445,-500.0,9.997e-05,2]
[348403506,1736514639454,-631.04,9.997e-05,2]
[348403507,1736514639463,-555.3,9.997e-05,2]
[348403508,1736514639472,-525.03,9.997e-05,2]
[348403509,1736514639481,-645.82,9.997e-05,2]
[348403510,1736514639490,-611.82,9.997e-05,2]
[348403511,1736514639500,-500.0,9.997e-05,2]
[348403512,1736514639509,-237.19346025,9.997e-05,2]
[348403513,1736514639520,-350.06653975,9.997e-05,2]
[348403514,1736514639529,-649.93346025,9.997e-05,2]
[348403515,1736514639544,-28.07653975,9.997e-05,2]
[348403516,1736514639553,-599.81,9.997e-05,2]
[348403517,1736514639562,-500.0,9.997e-05,2]
[348403518,1736514639572,-303.27239937,9.997e-05,2]
[348403519,1736514639581,-500.0,9.997e-05,2]
[348403520,1736514639590,-639.91,9.997e-05,2]
[348403521,1736514639599,-500.0,9.997e-05,2]
[348403522,1736514639608,-179.59820781,9.997e-05,2]
[348403527,1736514640052,-320.40179219,9.997e-05,2]
[348403528,1736514640063,-805.55,9.997e-05,2]
[348403529,1736514640072,-500.0,9.997e-05,2]
[348403530,1736514640083,-772.14,9.997e-05,2]
[348403531,1736514640096,-1501.93,9.997e-05,2]
[348403532,1736514640106,-5334.67,9.997e-05,2]
[348403533,1736514640116,-774.18,9.997e-05,2]
[348403534,1736514640125,-632.22,9.997e-05,2]
[348403535,1736514640134,-1068.01,9.997e-05,2]
[348403536,1736514640143,-618.69,9.997e-05,2]
[348403537,1736514640152,-614.32,9.997e-05,2]
[348403538,1736514640161,-921.03,9.997e-05,2]
[348403539,1736514640170,-500.0,9.997e-05,2]
[348403540,1736514640178,-639.65,9.997e-05,2]
[348403541,1736514640187,-970.09,9.997e-05,2]
[348403542,1736514640196,-500.0,9.997e-05,2]
[348403543,1736514640205,-1482.58,9.997e-05,2]
[348403544,1736514640214,-1097.73,9.997e-05,2]
[348403545,1736514640224,-699.17,9.997e-05,2]
[348403546,1736514640234,-579.06,9.997e-05,2]
[348403547,1736514640243,-500.0,9.997e-05,2]
[348403548,1736514640252,-1176.48,9.997e-05,2]
[348403549,1736514640261,-572.09,9.997e-05,2]
[348403550,1736514640270,-500.0,9.997e-05,2]
[348403551,1736514640280,-2426.37,9.997e-05,2]
[348403552,1736514640290,-711.01,9.997e-05,2]
[348403553,1736514640299,-500.0,9.997e-05,2]
[348403554,1736514640309,-796.83,9.997e-05,2]
[348403555,1736514640318,-845.57,9.997e-05,2]
[348403556,1736514640327,-535.21,9.997e-05,2]
[348403557,1736514640337,-500.0,9.997e-05,2]
[348403558,1736514640346,-626.94,9.997e-05,2]
[348403559,1736514640355,-1223.78,9.997e-05,2]
[348403560,1736514640365,-575.48,9.997e-05,2]
[348403561,1736514640375,-602.81,9.997e-05,2]
[348403562,1736514640385,-613.1,9.997e-05,2]
[348403563,1736514640394,-1207.0,9.997e-05,2]
[348403564,1736514640404,-500.0,9.997e-05,2]
[348403565,1736514640414,-500.0,9.997e-05,2]
[348403566,1736514640424,-576.29,9.997e-05,2]
[348403567,1736514640433,-817.4,9.997e-05,2]
[348403568,1736514640443,-545.89,9.997e-05,2]
[348403569,1736514640453,-1727.96,9.997e-05,2]
[348403570,1736514640463,-870.29,9.997e-05,2]
[348403571,1736514640472,-500.0,9.997e-05,2]
[348403572,1736514640482,-500.0,9.997e-05,2]
[348403573,1736514640491,-500.0,9.997e-05,2]
[348403574,1736514640500,-500.0,9.997e-05,2]
[348403575,1736514640510,-500.0,9.997e-05,2]
[348403576,1736514640519,-1055.99,9.997e-05,2]
[348403577,1736514640529,-599.59,9.997e-05,2]
[348403578,1736514640539,-500.0,9.997e-05,2]
[348403579,1736514640548,-500.0,9.997e-05,2]
[348403580,1736514640557,-623.46,9.997e-05,2]
[348403581,1736514640567,-845.30637334,9.998e-05,2]
[348403582,1736514640576,-500.0,9.998e-05,2]
[348403583,1736514640586,-500.0,9.998e-05,2]
[348403584,1736514640595,-500.0,9.998e-05,2]
[348403585,1736514640605,-500.0,9.998e-05,2]
[348403586,1736514640615,-500.0,9.998e-05,2]
[348403587,1736514640624,-500.0,9.998e-05,2]
[348403588,1736514640634,-500.0,9.998e-05,2]
[348403589,1736514640643,-500.0,9.998e-05,2]
[348403590,1736514640652,-500.0,9.998e-05,2]
[348403591,1736514640662,-500.0,9.998e-05,2]
[348403592,1736514640671,-500.0,9.998e-05,2]
[348403593,1736514640680,-500.0,9.998e-05,2]
[348403594,1736514640690,-500.0,9.998e-05,2]
[348403595,1736514640700,-500.0,9.998e-05,2]
[348403596,1736514640709,-500.0,9.998e-05,2]
[348403597,1736514640718,-500.0,9.998e-05,2]
[348403598,1736514640727,-500.0,9.998e-05,2]
[348403599,1736514640737,-500.0,9.998e-05,2]
[348403600,1736514640746,-500.0,9.998e-05,2]
[348403601,1736514640755,-365.59145259,9.998e-05,2]
[348403602,1736514640765,-500.0,9.998e-05,2]
[348403603,1736514640773,-500.0,9.998e-05,2]
[348403604,1736514640782,-500.0,9.998e-05,2]
[348403605,1736514640792,-500.0,9.998e-05,2]
[348403606,1736514640801,-500.0,9.998e-05,2]
[348403607,1736514640812,-500.0,9.998e-05,2]
[348403608,1736514640831,-500.0,9.998e-05,2]
[348403609,1736514640840,-500.0,9.998e-05,2]
[348403610,1736514640850,-500.0,9.998e-05,7]
[348403611,1736514640859,-500.0,9.998e-05,2]
[348403612,1736514640870,-500.0,9.998e-05,2]
[348403613,1736514640879,-500.0,9.998e-05,2]
[348403614,1736514640888,-500.0,9.998e-05,2]
[348403615,1736514640897,-504.6499641,9.998e-05,2]
[348403616,1736514640907,-500.0,9.998e-05,2]
[348403617,1736514640917,-506.95641962,9.998e-05,2]
[348403618,1736514640926,-500.0,9.998e-05,2]
[348403619,1736514640936,-500.0,9.998e-05,2]
[348403620,1736514640945,-500.0,9.998e-05,2]
[348403621,1736514640954,-500.0,9.998e-05,2]
[348403622,1736514640963,-504.28734458,9.998e-05,2]
[348403623,1736514640972,-500.0,9.998e-05,2]
[348403624,1736514640982,-500.0,9.998e-05,2]
[348403625,1736514640992,-500.0,9.998e-05,2]
[348403626,1736514641001,-500.0,9.998e-05,2]
[348403627,1736514641171,-500.0,9.998e-05,2]
[348403628,1736514641215,-500.0,9.998e-05,2]
[348403629,1736514641225,-500.0,9.998e-05,2]
[348403630,1736514641234,-507.30672556,9.998e-05,2]
[348403631,1736514641243,-414.5621334,9.998e-05,2]
[348403632,1736514641253,-500.0,9.998e-05,2]
[348403633,1736514641262,-500.0,9.998e-05,2]
[348403634,1736514641271,-500.0,9.998e-05,2]
[348403635,1736514641280,-500.0,9.998e-05,2]
[348403636,1736514641289,-500.0,9.998e-05,2]
[348403637,1736514641298,-500.0,9.998e-05,2]
[348403638,1736514641307,-500.0,9.998e-05,2]
[348403639,1736514641317,-500.0,9.998e-05,2]
[348403640,1736514641326,-500.0,9.998e-05,2]
[348403641,1736514641336,-500.0,9.998e-05,2]
[348403642,1736514641345,-526.19,9.998e-05,2]
[348403643,1736514641355,-500.0,9.998e-05,2]
[348403644,1736514641364,-500.0,9.998e-05,2]
[348403645,1736514641373,-500.0,9.998e-05,2]
[348403646,1736514641382,-500.0,9.998e-05,2]
[348403647,1736514641391,-500.0,9.998e-05,2]
[348403648,1736514641401,-500.0,9.998e-05,2]
[348403649,1736514641411,-500.0,9.998e-05,2]
[348403650,1736514641420,-500.0,9.998e-05,2]
[348403651,1736514641429,-500.0,9.998e-05,2]
[348403652,1736514641438,-500.0,9.998e-05,2]
[348403653,1736514641448,-500.0,9.998e-05,2]
[348403654,1736514641457,-500.0,9.998e-05,2]
[348403655,1736514641466,-273.22438846,9.998e-05,2]
[348403656,1736514641476,-500.0,9.998e-05,2]
[348403657,1736514641485,-500.0,9.998e-05,2]
[348403658,1736514641495,-500.0,9.998e-05,2]
[348403659,1736514641504,-500.0,9.998e-05,2]
[348403660,1736514641513,-500.0,9.998e-05,2]